bitfinex/quotes_SOLUSD_20260102
["timestamp","ask_amount","ask_price","bid_price","bid_amount"]
[1767383233609,3.78348341,131.62,131.59,0.67706304]
[1767383234609,7.59765602,131.62,131.59,0.67706304]
[1767383234904,19.70529581,131.64,131.6,0.67706304]
[1767383234905,11.38022235,131.64,131.6,0.67706304]
[1767383235279,11.38022235,131.64,131.61,0.67706304]
[1767383236786,0.11617703,131.63,131.6,1.67706304]
[1767383236986,3.78348341,131.63,131.61,0.67706304]
[1767383237606,3.78348341,131.63,131.6,1.67706304]
[1767383238214,11.38058397,131.63,131.6,1.67706304]
[1767383238402,11.49078653,131.63,131.6,1.67706304]
[1767383238594,3.78348341,131.61,131.6,1.0]
[1767383239000,4.49113288,131.62,131.6,1.0]
[1767383239188,3.78348341,131.61,131.6,1.0]
[1767383239896,3.78348341,131.62,131.6,1.0]
[1767383240185,22.17078485,131.63,131.59,0.67706304]
[1767383240383,3.78348341,131.62,131.59,0.67706304]
[1767383244092,8.31078485,131.63,131.59,0.67706304]
[1767383244307,3.78348341,131.62,131.59,0.67706304]
[1767383244502,3.89966044,131.6,131.56,0.87706304]
[1767383244705,0.71368429,131.61,131.57,0.67706304]
[1767383244898,18.3571677,131.61,131.57,0.67706304]
[1767383245893,11.38167511,131.62,131.58,0.67706304]
[1767383246293,7.5981917,131.62,131.58,0.67706304]
[1767383246494,11.38167511,131.62,131.58,8.2768319]
[1767383246703,11.38167511,131.62,131.59,0.67706304]
[1767383246913,3.78348341,131.64,131.6,0.67706304]
[1767383247221,11.38019086,131.64,131.6,0.67706304]
[1767383247600,7.59670745,131.64,131.6,0.67706304]
[1767383247805,3.78348341,131.64,131.6,0.67706304]
[1767383248702,11.49033131,131.64,131.6,0.67706304]
[1767383248904,11.49033131,131.64,131.61,0.70303543]
[1767383249713,8.30282408,131.65,131.61,0.70303543]
[1767383250018,12.08630749,131.65,131.61,0.70303543]
[1767383250794,11.37963788,131.65,131.62,0.66832765]
[1767383251316,11.49678497,131.65,131.62,0.66832765]
[1767383251516,11.49678497,131.65,131.62,0.63960058]
[1767383251698,3.78348341,131.64,131.62,0.63960058]
[1767383251899,3.78348341,131.63,131.59,7.59914128]
[1767383252922,7.59705234,131.63,131.59,7.59914128]
[1767383253115,11.38053575,131.63,131.59,7.59914128]
[1767383253614,11.38053575,131.63,131.6,0.66832765]
[1767383256216,11.52612264,131.63,131.6,0.66832765]
[1767383259499,11.38053575,131.63,131.6,0.66832765]
[1767383260020,11.38023043,131.64,131.61,0.66832765]
[1767383260226,25.94632469,131.65,131.61,0.66832765]
[1767383260910,3.78348341,131.63,131.6,0.66832765]
[1767383262972,4.49015302,131.65,131.61,0.66832765]
[1767383264227,12.08632461,131.65,131.61,0.66832765]
[1767383264723,8.3028412,131.65,131.62,0.66832765]
[1767383265027,12.08632461,131.65,131.62,0.66832765]
[1767383265239,3.78348341,131.64,131.62,0.66832765]
[1767383266630,2.42236287,131.64,131.62,0.66832765]
[1767383269126,8.3028412,131.65,131.62,0.66832765]
[1767383269317,2.42236287,131.64,131.62,0.66832765]
[1767383270028,10.72520407,131.65,131.62,0.66832765]
[1767383270335,5.68969664,131.64,131.62,0.66832765]
[1767383270509,2.42236287,131.64,131.62,0.66832765]
[1767383271725,10.72520407,131.65,131.62,0.66832765]
[1767383272032,7.59617159,131.65,131.62,0.66832765]
[1767383272212,10.01853446,131.65,131.62,0.66832765]
[1767383272405,2.42236287,131.63,131.61,0.66832765]
[1767383272606,0.70666961,131.64,131.61,0.66832765]
[1767383272825,3.12903248,131.64,131.61,0.66832765]
[1767383273906,10.72554046,131.64,131.61,0.66832765]
[1767383275235,10.01887085,131.64,131.61,0.66832765]
[1767383276328,2.42236287,131.65,131.62,0.68658638]
[1767383276630,23.87798947,131.66,131.62,0.68658638]
[1767383277011,2.42236287,131.65,131.62,0.68658638]
[1767383277217,8.11144135,131.65,131.62,0.68658638]
[1767383277416,8.11174456,131.64,131.62,0.68658638]
[1767383277629,2.42236287,131.64,131.62,0.65694013]
[1767383278040,2.42236287,131.64,131.62,0.62771263]
[1767383278337,10.01911923,131.64,131.62,0.62771263]
[1767383279420,0.65521071,131.62,131.57,7.60018828]
[1767383279622,0.25481621,131.61,131.56,14.08]
[1767383279840,2.67717908,131.61,131.56,16.50236287]
[1767383280014,2.67717908,131.61,131.57,0.70407793]
[1767383280220,2.42236287,131.6,131.57,0.70407793]
[1767383280538,10.02119106,131.6,131.57,0.70407793]
[1767383281439,10.02119106,131.6,131.57,0.67435575]
[1767383281735,2.42236287,131.6,131.57,0.67435575]
[1767383281935,2.42236287,131.6,131.57,0.64549028]
[1767383282327,10.02124238,131.6,131.57,0.64549028]
[1767383282523,2.42236287,131.59,131.57,0.64549028]
[1767383282724,2.42236287,131.59,131.56,0.2]
[1767383283738,2.42236287,131.58,131.56,0.2]
[1767383283927,2.42236287,131.58,131.57,0.70407793]
[1767383284123,3.08165882,131.58,131.54,0.2]
[1767383284325,0.65929595,131.56,131.54,0.2]
[1767383284519,2.42236287,131.56,131.54,0.2]
[1767383286340,0.65929595,131.54,131.5,0.2]
[1767383286532,2.42236287,131.52,131.5,0.2]
[1767383286735,3.08165882,131.51,131.49,0.2]
[1767383287038,0.65929595,131.51,131.49,0.2]
[1767383287240,3.08165882,131.54,131.5,0.59973359]
[1767383287447,0.65929595,131.54,131.5,0.59973359]
[1767383287944,3.08165882,131.54,131.5,0.59973359]
[1767383288147,2.42236287,131.53,131.5,8.20422201]
[1767383288445,2.42236287,131.54,131.51,0.59973359]
[1767383288642,3.08165882,131.57,131.52,0.59973359]
[1767383289147,3.08165882,131.56,131.52,0.59973359]
[1767383289441,2.42236287,131.55,131.51,0.59973359]
[1767383289624,0.65929595,131.54,131.51,0.59973359]
[1767383289816,0.65929595,131.54,131.51,3.02209646]
[1767383290246,0.65929595,131.54,131.51,10.62573478]
[1767383290647,3.08165882,131.56,131.51,10.62573478]
[1767383290839,0.65929595,131.56,131.52,3.02209646]
[1767383291237,0.65929595,131.57,131.53,3.02209646]
[1767383292245,0.65929595,131.57,131.53,10.62445697]
[1767383292657,0.65929595,131.57,131.53,8.2020941]
[1767383292857,0.65929595,131.57,131.53,10.62445697]
[1767383293553,0.65929595,131.57,131.54,2.42236287]
[1767383295149,0.65929595,131.57,131.53,10.62445697]
[1767383295543,0.65929595,131.57,131.54,7.60220126]
[1767383295744,0.65929595,131.57,131.54,10.02456413]
[1767383296644,0.65929595,131.57,131.54,10.62429772]
[1767383299224,0.65929595,131.58,131.54,10.62429772]
[1767383299426,0.65929595,131.59,131.56,3.02209646]
[1767383299650,2.42236287,131.61,131.57,2.42236287]
[1767383299651,0.65929595,131.61,131.57,2.42236287]
[1767383299832,0.65929595,131.61,131.56,0.59973359]
[1767383300032,0.65929595,131.61,131.57,2.42236287]
[1767383301151,0.65929595,131.6,131.57,10.02286194]
[1767383301852,0.65929595,131.6,131.57,7.60049907]
[1767383302057,0.65929595,131.6,131.57,10.02286194]
[1767383302445,8.25729372,131.62,131.58,3.02209646]
[1767383302754,0.65929595,131.62,131.59,2.42236287]
[1767383304164,0.65929595,131.63,131.59,3.02209646]
[1767383304364,0.65929595,131.63,131.59,10.62121146]
[1767383304558,0.65929595,131.62,131.59,8.19884859]
[1767383304763,0.65929595,131.62,131.59,10.02147787]
[1767383305443,0.65929595,131.62,131.59,7.599115]
[1767383305742,0.65929595,131.62,131.58,10.62175092]
[1767383307867,0.65929595,131.62,131.59,10.02171581]
[1767383308160,8.25694645,131.62,131.59,0.59973359]
[1767383308856,0.65929595,131.62,131.59,0.59973359]
[1767383310966,8.29755664,131.63,131.59,10.62122602]
[1767383311143,19.69054568,131.65,131.6,0.59973359]
[1767383311343,3.12258736,131.65,131.6,2.42236287]
[1767383311538,0.70022449,131.65,131.61,2.42236287]
[1767383313466,0.70022449,131.65,131.61,10.59006903]
[1767383313659,8.29614223,131.65,131.61,10.59006903]
[1767383313864,10.7185051,131.65,131.61,8.16770616]
[1767383314664,8.29614223,131.65,131.61,8.16770616]
[1767383314880,10.7185051,131.65,131.61,8.16770616]
[1767383315489,0.70022449,131.65,131.61,10.59006903]
[1767383315771,3.12258736,131.65,131.61,10.59006903]
[1767383316371,3.12258736,131.65,131.61,10.5611338]
[1767383316765,0.70022449,131.63,131.6,7.59852344]
[1767383317063,3.12258736,131.64,131.6,7.59852344]
[1767383317267,3.12258736,131.64,131.6,10.02088631]
[1767383317569,0.70022449,131.63,131.6,10.02088631]
[1767383317966,0.70022449,131.63,131.6,7.5694104]
[1767383318269,0.70022449,131.63,131.6,9.99177327]
[1767383318650,0.70022449,131.63,131.6,10.53266328]
[1767383318968,0.70022449,131.64,131.61,2.96325288]
[1767383319754,0.70022449,131.64,131.61,10.56101477]
[1767383321072,0.70022449,131.65,131.62,2.96325288]
[1767383321450,0.70022449,131.65,131.62,2.42236287]
[1767383321651,0.70022449,131.65,131.62,10.01996274]
[1767383323378,0.70022449,131.65,131.62,7.59759987]
[1767383323679,0.70022449,131.65,131.62,10.01996274]
[1767383324676,0.70022449,131.65,131.62,2.42236287]
[1767383324860,0.70022449,131.65,131.61,8.13884155]
[1767383325178,0.70022449,131.65,131.61,10.56120442]
[1767383325179,0.70022449,131.64,131.61,10.56120442]
[1767383326466,0.70022449,131.64,131.61,8.13884155]
[1767383328767,0.70022449,131.64,131.61,11.92296469]
[1767383330280,0.70022449,131.66,131.62,4.32501315]
[1767383331878,0.70022449,131.66,131.62,11.92231038]
[1767383332081,0.70022449,131.66,131.61,18.99551705]
[1767383332082,0.69673041,131.65,131.61,11.92292202]
[1767383332765,0.69673041,131.65,131.62,7.59758294]
[1767383335993,0.69673041,131.65,131.62,8.13847295]
[1767383336193,0.69673041,131.66,131.63,0.54089001]
[1767383336687,0.69673041,131.65,131.62,7.59758294]
[1767383337094,0.69673041,131.65,131.62,8.13847295]
[1767383337294,0.69673041,131.65,131.62,7.59758294]
[1767383339198,0.69673041,131.65,131.62,8.13847295]
[1767383339593,0.69673041,131.65,131.62,11.92259609]
[1767383339896,0.71820752,131.66,131.62,11.92259609]
[1767383342200,8.31322931,131.67,131.64,0.54089001]
[1767383342372,0.71820752,131.66,131.63,4.32501315]
[1767383342575,0.71820752,131.67,131.64,4.32501315]
[1767383342773,0.71820752,131.67,131.64,11.92126156]
[1767383343705,0.71820752,131.67,131.64,8.13713842]
[1767383344210,0.71820752,131.67,131.63,11.92186894]
[1767383344502,0.71820752,131.66,131.62,11.9225563]
[1767383346102,0.71820752,131.66,131.62,8.13843316]
[1767383346480,4.50233066,131.66,131.62,8.13843316]
[1767383347597,0.71820752,131.66,131.62,11.9225563]
[1767383352001,0.71820752,131.66,131.62,8.13843316]
[1767383354212,0.71820752,131.67,131.64,4.32501315]
[1767383354395,0.71820752,131.67,131.63,4.32501315]
[1767383355106,0.71820752,131.67,131.63,11.92172255]
[1767383356909,0.71820752,131.66,131.63,8.13759941]
[1767383358085,0.71820752,131.66,131.63,11.92172255]
[1767383358283,0.71820752,131.66,131.63,8.13759941]
[1767383358513,0.71820752,131.66,131.63,11.92172255]
[1767383359190,0.71820752,131.65,131.62,8.13831794]
[1767383359619,12.0972767,131.67,131.63,8.13793606]
[1767383359818,0.71820752,131.66,131.63,8.13793606]
[1767383360796,0.71820752,131.67,131.64,0.54089001]
[1767383361000,0.71820752,131.67,131.63,11.38116919]
[1767383361314,0.71820752,131.67,131.63,11.9220592]
[1767383362017,0.71820752,131.66,131.63,11.9220592]
[1767383363213,0.71820752,131.66,131.63,8.13793606]
[1767383365316,0.71820752,131.66,131.63,8.59433606]
[1767383365617,0.71820752,131.66,131.63,23.49433606]
[1767383372920,8.31363148,131.66,131.63,15.3564]
[1767383373107,8.31363148,131.66,131.63,15.89729001]
[1767383374523,0.71820752,131.66,131.63,15.89729001]
[1767383375916,0.71820752,131.66,131.63,23.49429318]
[1767383376223,8.24906252,131.68,131.65,0.54089001]
[1767383376600,0.65463488,131.67,131.65,0.54089001]
[1767383376839,0.65463488,131.68,131.65,0.54089001]
[1767383377215,0.65463488,131.69,131.66,0.54089001]
[1767383377409,0.65463488,131.69,131.66,4.32501315]
[1767383378711,0.65463488,131.68,131.65,0.54089001]
[1767383379622,0.65463488,131.68,131.64,11.92122704]
[1767383380534,8.24903649,131.68,131.64,11.92122704]
[1767383380710,0.65463488,131.67,131.64,11.92122704]
[1767383381922,0.65463488,131.67,131.64,8.1371039]
[1767383383232,8.24903649,131.68,131.65,0.54089001]
[1767383383406,8.2484025,131.69,131.66,0.54089001]
[1767383383710,0.65463488,131.7,131.67,0.54089001]
[1767383385326,8.2473486,131.71,131.67,11.91951806]
[1767383385511,0.65463488,131.7,131.67,11.91951806]
[1767383386325,0.65463488,131.7,131.67,8.13539492]
[1767383387335,0.65463488,131.7,131.67,8.59179492]
[1767383387531,8.2473486,131.71,131.68,0.54089001]
[1767383387936,0.65463488,131.7,131.67,11.01141002]
[1767383389634,0.65463488,131.7,131.67,8.59179492]
[1767383389828,0.65463488,131.7,131.67,11.01141002]
[1767383390221,0.65463488,131.7,131.67,8.59179492]
[1767383390424,0.65463488,131.7,131.67,0.99729001]
[1767383390729,0.65463488,131.7,131.67,8.59196693]
[1767383393935,0.65463488,131.7,131.67,11.01158203]
[1767383394233,8.2473486,131.71,131.68,0.54089001]
[1767383394434,0.65463488,131.7,131.68,0.54089001]
[1767383394816,0.65463488,131.7,131.67,11.01158203]
[1767383395016,0.65463488,131.7,131.68,0.54089001]
[1767383395427,8.2473486,131.71,131.68,0.54089001]
[1767383397538,0.65463488,131.71,131.68,10.55466006]
[1767383398240,0.65463488,131.71,131.68,8.13504496]
[1767383399049,0.65463488,131.71,131.68,10.55466006]
[1767383399337,0.70445304,131.71,131.68,0.54089001]
[1767383400335,0.70445304,131.71,131.68,8.13491877]
[1767383404524,0.70445304,131.71,131.68,10.55453387]
[1767383404720,8.29707611,131.71,131.68,0.54089001]
[1767383404927,0.70445304,131.7,131.67,8.13524265]
[1767383406055,0.70445304,131.7,131.66,22.45505304]
[1767383406244,0.70445304,131.66,131.63,8.13759147]
[1767383406441,0.70445304,131.66,131.6,10.1257703]
[1767383406442,8.30040414,131.65,131.62,0.72065045]
[1767383406752,3.12406814,131.65,131.62,0.72065045]
[1767383406948,0.70445304,131.65,131.62,8.31823881]
[1767383407824,8.29948132,131.67,131.64,0.72065045]
[1767383408024,0.70445304,131.66,131.63,8.31758689]
[1767383409053,0.67445304,131.66,131.63,8.31758689]
[1767383409351,0.67445304,131.66,131.63,8.77398689]
[1767383410349,0.67445304,131.66,131.63,1.17705045]
[1767383410955,3.09406814,131.66,131.63,1.17705045]
[1767383411862,0.70445304,131.65,131.63,1.17705045]
[1767383416533,3.12406814,131.65,131.63,1.17705045]
[1767383419855,0.70445304,131.64,131.62,1.9]
[1767383420073,2.95743948,131.63,131.6,0.72065045]
[1767383420260,3.12240185,131.62,131.6,0.72065045]
[1767383420456,2.4196151,131.62,131.6,0.72065045]
[1767383420752,13.86,131.64,131.57,0.72065045]
[1767383420753,0.539474,131.6,131.57,0.72065045]
[1767383420953,2.4196151,131.59,131.57,0.72065045]
[1767383421140,3.12076873,131.59,131.56,0.72065045]
[1767383421751,2.4196151,131.58,131.56,0.72065045]
[1767383422642,10.01973822,131.58,131.56,0.72065045]
[1767383422847,2.4196151,131.57,131.56,0.72065045]
[1767383423031,2.4196151,131.58,131.56,0.72065045]
[1767383427858,2.4196151,131.57,131.56,0.72065045]
[1767383434451,2.4196151,131.58,131.56,0.72065045]
[1767383434647,2.95983615,131.58,131.56,0.72065045]
[1767383437172,2.4196151,131.57,131.56,0.72065045]
[1767383439775,2.4196151,131.57,131.56,8.321745]
[1767383440482,2.4196151,131.57,131.55,0.72152214]
[1767383440659,0.54022105,131.58,131.53,7.60251908]
[1767383440660,3.12164726,131.56,131.53,7.60251908]
[1767383440974,3.12164726,131.56,131.52,7.60301932]
[1767383440975,2.4196151,131.54,131.52,7.60301932]
[1767383441351,0.70203216,131.56,131.52,7.60340632]
[1767383441550,2.4196151,131.55,131.52,7.60340632]
[1767383442573,2.4196151,131.55,131.53,8.32432403]
[1767383444581,2.4196151,131.55,131.54,0.72152214]
[1767383445276,14.58203216,131.58,131.54,0.72152214]
[1767383445473,46.45519334,131.7,131.54,0.72152214]
[1767383445474,0.70203216,131.61,131.54,0.72152214]
[1767383445662,3.12164726,131.58,131.55,8.3231945]
[1767383445865,2.4196151,131.57,131.55,8.3231945]
[1767383446058,2.4196151,131.58,131.56,0.72152214]
[1767383446980,2.4196151,131.58,131.56,8.3225728]
[1767383447879,3.12164726,131.58,131.55,0.72152214]
[1767383448563,4.48994513,131.58,131.55,0.72152214]
[1767383448756,3.78791297,131.58,131.56,0.72152214]
[1767383448949,3.78791297,131.59,131.57,8.32195787]
[1767383449154,4.48994513,131.61,131.58,0.72152214]
[1767383449574,0.70203216,131.6,131.58,0.72152214]
[1767383449773,4.48994513,131.6,131.57,8.32195787]
[1767383452263,0.70203216,131.6,131.57,8.32195787]
[1767383456779,4.48994513,131.59,131.56,0.72152214]
[1767383456978,0.70203216,131.58,131.56,0.72152214]
[1767383457483,4.48994513,131.59,131.56,0.72152214]
[1767383459282,0.70203216,131.59,131.56,0.72152214]
[1767383461383,8.30140014,131.59,131.56,0.72152214]
[1767383461587,12.08931311,131.59,131.56,0.72152214]
[1767383461965,0.69252957,131.58,131.56,0.72152214]
[1767383462784,12.07981052,131.59,131.56,0.72152214]
[1767383463380,0.69252957,131.58,131.55,0.67188639]
[1767383463569,0.69252957,131.57,131.54,8.27395578]
[1767383464475,4.48044254,131.57,131.53,68.80256258]
[1767383464666,4.48044254,131.57,131.53,0.67188639]
[1767383464667,0.69252957,131.56,131.53,0.67188639]
[1767383466080,0.69252957,131.54,131.51,8.27576128]
[1767383466281,0.69252957,131.55,131.52,8.27529006]
[1767383466484,12.08160044,131.56,131.53,0.67188639]
[1767383466667,0.69252957,131.55,131.52,8.27529006]
[1767383467275,4.48044254,131.56,131.53,0.67188639]
[1767383467470,0.69252957,131.57,131.54,0.67188639]
[1767383467877,0.69252957,131.56,131.53,0.67188639]
[1767383468589,4.48044254,131.57,131.53,0.67188639]
[1767383468792,0.69252957,131.57,131.53,0.67188639]
[1767383469097,0.69252957,131.57,131.54,0.67188639]
[1767383469986,0.69252957,131.58,131.55,0.67188639]
[1767383470190,12.07940066,131.6,131.56,0.67188639]
[1767383470796,0.69252957,131.59,131.56,0.67188639]
[1767383471294,0.69252957,131.57,131.54,8.27362309]
[1767383471488,0.69252957,131.57,131.54,0.67188639]
[1767383471794,0.69252957,131.57,131.54,8.27406037]
[1767383473893,0.69252957,131.57,131.54,7.60217398]
[1767383475495,0.69252957,131.57,131.49,10.99765669]
[1767383475496,0.69252957,131.54,131.49,10.99765669]
[1767383475679,13.88,131.53,131.5,0.67188639]
[1767383475881,0.69252957,131.54,131.51,0.67188639]
[1767383476872,19.69174449,131.59,131.53,4.45979936]
[1767383477177,7.5999392,131.58,131.55,0.67188639]
[1767383477398,8.29246877,131.58,131.55,0.67188639]
[1767383482514,0.69252957,131.57,131.54,8.27408376]
[1767383486709,0.69252957,131.55,131.52,8.27496209]
[1767383486888,4.48044254,131.56,131.54,13.88]
[1767383487710,3.78791297,131.56,131.54,14.54825227]
[1767383488140,12.08731826,131.57,131.54,14.54825227]
[1767383488310,12.08694505,131.58,131.55,0.66825227]
[1767383489289,8.29903208,131.58,131.55,0.66825227]
[1767383489483,12.08694505,131.58,131.55,0.66825227]
[1767383489689,12.08694505,131.58,131.55,14.54825227]
[1767383491594,0.69896225,131.63,131.57,0.71360465]
[1767383491814,8.29609581,131.63,131.59,8.31280685]
[1767383492115,12.08400878,131.63,131.59,8.31280685]
[1767383492517,12.09573221,131.65,131.61,0.71360465]
[1767383492691,12.09573221,131.65,131.62,0.71360465]
[1767383492891,3.78791297,131.64,131.62,0.71360465]
[1767383493113,3.78791297,131.64,131.61,14.59360465]
[1767383493510,4.48687522,131.64,131.61,14.59360465]
[1767383494909,3.78791297,131.63,131.61,13.88]
[1767383495309,3.78791297,131.63,131.61,13.85009505]
[1767383495809,8.29547104,131.64,131.61,13.85009505]
[1767383496015,4.49929461,131.63,131.61,13.82064958]
[1767383497126,4.48699942,131.62,131.58,8.3132771]
[1767383497418,3.78791297,131.61,131.6,13.88]
[1767383498420,0.71150709,131.63,131.6,14.59360465]
[1767383498626,4.49942006,131.63,131.6,14.59360465]
[1767383501318,4.48687522,131.62,131.6,13.88]
[1767383501614,12.09660582,131.63,131.6,14.59360465]
[1767383504225,3.78791297,131.62,131.6,14.59360465]
[1767383505319,8.30869285,131.63,131.6,14.59360465]
[1767383505619,3.78791297,131.62,131.6,14.59360465]
[1767383506210,3.78791297,131.63,131.61,0.71360465]
[1767383506412,4.48687522,131.63,131.6,21.47860829]
[1767383506611,4.48687522,131.63,131.6,22.19221294]
[1767383506813,3.78791297,131.63,131.61,0.71360465]
[1767383507227,4.48687522,131.63,131.6,22.19221294]
[1767383508541,3.12145137,131.63,131.6,14.59360465]
[1767383509422,3.13387076,131.62,131.6,13.88]
[1767383509607,3.13387076,131.62,131.61,13.17385207]
[1767383510735,3.13387076,131.62,131.59,14.59360465]
[1767383511233,2.42248912,131.62,131.6,0.71360465]
[1767383512036,2.52148912,131.62,131.59,22.1929045]
[1767383512331,0.60625782,131.61,131.59,21.47929985]
[1767383512528,3.02874694,131.61,131.57,0.71360465]
[1767383512732,2.5265617,131.6,131.58,13.88]
[1767383513825,2.5265617,131.6,131.57,8.31383566]
[1767383513826,2.5265617,131.6,131.57,0.71360465]
[1767383514032,3.02372508,131.59,131.56,22.19460269]
[1767383515325,2.42248912,131.58,131.56,0.71360465]
[1767383516641,3.02372508,131.59,131.56,0.71360465]
[1767383517140,3.02372508,131.59,131.55,21.48148316]
[1767383517141,3.01880316,131.57,131.54,8.31566865]
[1767383517314,2.42248912,131.6,131.56,0.71360465]
[1767383517512,3.02874694,131.6,131.56,0.71360465]
[1767383517916,3.02874694,131.6,131.56,8.31463907]
[1767383518530,0.10407258,131.59,131.56,0.71360465]
[1767383518737,2.5265617,131.59,131.56,0.71360465]
[1767383519723,10.12593797,131.59,131.56,0.71360465]
[1767383520432,7.59937287,131.59,131.56,0.71360465]
[1767383521335,19.60496845,131.63,131.58,0.70107429]
[1767383521539,2.52148912,131.62,131.58,0.70107429]
[1767383521839,0.60625782,131.61,131.58,0.70107429]
[1767383522036,10.63150029,131.62,131.58,0.70107429]
[1767383522441,2.52148912,131.61,131.57,0.70107429]
[1767383522649,3.02874694,131.6,131.57,0.70107429]
[1767383522943,0.60625782,131.6,131.57,0.70107429]
[1767383523126,3.02874694,131.6,131.57,0.70107429]
[1767383523843,8.20524495,131.6,131.56,8.30209341]
[1767383524144,8.20524495,131.6,131.56,8.30205193]
[1767383524145,2.42248912,131.59,131.56,8.30205193]
[1767383524325,10.63285789,131.6,131.57,0.70107429]
[1767383524523,8.21036877,131.6,131.57,0.70107429]
[1767383524731,10.63285789,131.6,131.57,0.70107429]
[1767383525746,18.99407384,131.62,131.58,0.70107429]
[1767383525747,0.61138164,131.62,131.58,0.70107429]
[1767383526045,2.42248912,131.62,131.59,0.70107429]
[1767383526238,2.52148912,131.62,131.59,0.70107429]
[1767383526545,2.52148912,131.62,131.58,8.30071156]
[1767383526546,2.42248912,131.61,131.58,8.30071156]
[1767383528251,0.099,131.62,131.58,8.30071156]
[1767383528441,2.42248912,131.61,131.59,0.70107429]
[1767383529450,10.11917076,131.62,131.59,0.70107429]
[1767383529926,2.42248912,131.6,131.57,7.60030091]
[1767383530126,3.03387076,131.6,131.57,8.3013752]
[1767383530531,2.42248912,131.6,131.57,8.3013752]
[1767383530934,2.42248912,131.6,131.58,0.70107429]
[1767383531138,2.42248912,131.59,131.57,0.70107429]
[1767383531339,2.42248912,131.59,131.56,8.3021601]
[1767383532051,2.42248912,131.59,131.57,0.70107429]
[1767383532355,10.62814971,131.59,131.56,0.70107429]
[1767383533953,3.02874694,131.59,131.56,0.70107429]
[1767383534332,2.5265617,131.58,131.54,8.30310007]
[1767383534539,2.5265617,131.58,131.55,0.70107429]
[1767383535850,3.02372508,131.57,131.54,0.70107429]
[1767383537034,2.53153334,131.56,131.53,0.70107429]
[1767383537648,2.42248912,131.56,131.53,8.30389845]
[1767383537834,2.42248912,131.56,131.54,0.70107429]
[1767383538034,10.63449099,131.57,131.54,0.70107429]
[1767383538231,2.42248912,131.56,131.54,0.70107429]
[1767383539553,8.21200187,131.57,131.54,0.70107429]
[1767383539754,2.42248912,131.56,131.54,0.70107429]
[1767383547154,2.52148912,131.56,131.53,8.30390082]
[1767383547358,0.60625782,131.55,131.53,7.60282653]
[1767383547559,0.60625782,131.54,131.52,7.60315398]
[1767383547759,3.03387076,131.55,131.52,8.31105792]
[1767383547950,2.42248912,131.55,131.53,0.70790394]
[1767383549461,2.42248912,131.54,131.52,0.69124942]
[1767383550260,2.42248912,131.54,131.52,8.29452362]
[1767383550559,2.42248912,131.54,131.52,0.69124942]
[1767383550759,2.42248912,131.53,131.51,0.69124942]
[1767383550939,2.42248912,131.53,131.51,8.29517685]
[1767383551764,2.42248912,131.54,131.51,8.29517685]
[1767383552238,7.70096998,131.55,131.51,8.29517685]
[1767383552436,2.42248912,131.54,131.51,8.29517685]
[1767383558360,7.70096998,131.55,131.51,8.29517685]
[1767383558544,2.42248912,131.54,131.51,8.29517685]
[1767383560662,14.49138164,131.58,131.52,0.69124942]
[1767383560853,2.42248912,131.58,131.54,0.69124942]
[1767383561460,7.59915254,131.6,131.56,0.69124942]
[1767383561461,0.61138164,131.6,131.56,0.69124942]
[1767383561648,3.03387076,131.61,131.56,0.69124942]
[1767383561854,0.61138164,131.62,131.57,0.69124942]
[1767383562048,3.03387076,131.62,131.58,0.69124942]
[1767383562271,3.03387076,131.63,131.58,0.69124942]
[1767383562468,2.5265617,131.6,131.57,0.69124942]
[1767383562764,0.10407258,131.6,131.57,8.29165385]
[1767383563065,2.42248912,131.6,131.57,8.29165385]
[1767383563368,0.099,131.6,131.57,8.29165385]
[1767383564174,2.52148912,131.6,131.57,8.29165385]
[1767383564568,2.52148912,131.6,131.57,0.69124942]
[1767383564759,0.60625782,131.59,131.56,8.29209492]
[1767383565761,3.03387076,131.6,131.56,8.29209492]
[1767383565969,3.03387076,131.6,131.57,0.69124942]
[1767383567673,3.03387076,131.6,131.56,8.29209492]
[1767383567874,3.03387076,131.6,131.57,0.69124942]
[1767383568777,0.61138164,131.6,131.57,0.69124942]
[1767383569273,3.03387076,131.6,131.57,0.69124942]
[1767383569678,10.63215193,131.61,131.57,8.29167]
[1767383570374,10.63161546,131.62,131.58,0.69124942]
[1767383570688,3.88525474,131.61,131.58,0.69124942]
[1767383571054,0.10407258,131.59,131.56,8.29212469]
[1767383571556,3.78625474,131.6,131.57,0.69124942]
[1767383571753,0.099,131.6,131.57,0.69124942]
[1767383574374,0.10407258,131.58,131.55,0.69124942]
[1767383575272,3.89032732,131.58,131.55,0.69124942]
[1767383575470,0.60123596,131.57,131.54,8.29314486]
[1767383575870,0.60123596,131.57,131.52,32.88753311]
[1767383575871,0.60123596,131.57,131.53,8.29379415]
[1767383576260,0.10904422,131.56,131.53,7.60254473]
[1767383576465,0.10904422,131.56,131.53,8.29379415]
[1767383576975,0.10904422,131.56,131.53,0.69124942]
[1767383578277,0.61138164,131.57,131.54,0.69124942]
[1767383578468,7.6001742,131.58,131.54,0.69124942]
[1767383578469,11.99781058,131.58,131.54,0.69124942]
[1767383578858,8.21096431,131.59,131.54,4.47750416]
[1767383579161,8.21096431,131.59,131.55,0.69124942]
[1767383579476,11.38583741,131.59,131.55,0.69124942]
[1767383579774,11.48483741,131.59,131.55,0.69124942]